[Event "Early-Titled-Tuesday-Blitz-January-30-2024"]
[Site "Chess.com"]
[Date "2024.01.30"]
[Round "5"]
[White "InitiatingASC"]
[Black "ritanovikova"]
[Result "1/2-1/2"]
[WhiteElo "2412"]
[BlackElo "2204"]
[TimeControl "180+1"]
[EndTime "8:57:39 PST"]
[Termination "Game drawn by repetition"]

1. d4 {[%clk 0:02:32.5]} 1... d5 {[%clk 0:02:57.8]} 2. c4 {[%clk 0:02:32.5]}
2... e6 {[%clk 0:02:57.5]} 3. Nc3 {[%clk 0:02:32.3]} 3... Nf6 {[%clk 0:02:57.7]}
4. Nf3 {[%clk 0:02:27.1]} 4... c6 {[%clk 0:02:56.7]} 5. Bg5 {[%clk 0:02:22.5]}
5... Be7 {[%clk 0:02:55.6]} 6. e3 {[%clk 0:02:19]} 6... O-O {[%clk 0:02:54.9]}
7. Be2 {[%clk 0:02:15.6]} 7... Ne4 {[%clk 0:02:51.8]} 8. Bxe7 {[%clk 0:02:09.2]}
8... Qxe7 {[%clk 0:02:51.6]} 9. Nxe4 {[%clk 0:02:08]} 9... dxe4 {[%clk
0:02:51.5]} 10. Nd2 {[%clk 0:02:06.6]} 10... f5 {[%clk 0:02:47.9]} 11. Qb3
{[%clk 0:01:58]} 11... Kh8 {[%clk 0:02:45.8]} 12. Nb1 {[%clk 0:01:55.5]} 12...
e5 {[%clk 0:02:35.5]} 13. dxe5 {[%clk 0:01:48.5]} 13... Qxe5 {[%clk 0:02:36.4]}
14. Qc3 {[%clk 0:01:48.4]} 14... Qc7 {[%clk 0:02:28.7]} 15. g3 {[%clk 0:01:42]}
15... Nd7 {[%clk 0:02:23.8]} 16. h4 {[%clk 0:01:37]} 16... Ne5 {[%clk
0:02:23.1]} 17. h5 {[%clk 0:01:35.1]} 17... h6 {[%clk 0:02:23.1]} 18. Na3 {[%clk
0:01:27.1]} 18... Rd8 {[%clk 0:02:19.7]} 19. Rd1 {[%clk 0:01:19.7]} 19... Be6
{[%clk 0:02:17.9]} 20. O-O {[%clk 0:01:11.3]} 20... Bf7 {[%clk 0:02:09.4]} 21.
Nc2 {[%clk 0:01:03.6]} 21... c5 {[%clk 0:02:02.6]} 22. Ne1 {[%clk 0:00:51.2]}
22... Rxd1 {[%clk 0:01:58.4]} 23. Bxd1 {[%clk 0:00:51.3]} 23... Rd8 {[%clk
0:01:57.2]} 24. Be2 {[%clk 0:00:51.6]} 24... Qe7 {[%clk 0:01:35.7]} 25. Ng2
{[%clk 0:00:48.9]} 25... Kh7 {[%clk 0:01:08.8]} 26. Nf4 {[%clk 0:00:48]} 26...
Qf6 {[%clk 0:01:05.7]} 27. Kg2 {[%clk 0:00:41.3]} 27... Rd6 {[%clk 0:00:56.3]}
28. Rd1 {[%clk 0:00:38.6]} 28... Rxd1 {[%clk 0:00:54.2]} 29. Bxd1 {[%clk
0:00:38.8]} 29... Nxc4 {[%clk 0:00:53.4]} 30. Qxf6 {[%clk 0:00:35.2]} 30... gxf6
{[%clk 0:00:53.4]} 31. Bb3 {[%clk 0:00:34.4]} 31... Ne5 {[%clk 0:00:34.4]} 32.
Bxf7 {[%clk 0:00:17.9]} 32... Nxf7 {[%clk 0:00:35.3]} 33. Nd5 {[%clk 0:00:18.6]}
33... Kg7 {[%clk 0:00:34.2]} 34. Ne7 {[%clk 0:00:18.8]} 34... Nd6 {[%clk
0:00:33.1]} 35. Kf1 {[%clk 0:00:17.7]} 35... Kf7 {[%clk 0:00:33.2]} 36. Nd5
{[%clk 0:00:18.2]} 36... Ke6 {[%clk 0:00:32.5]} 37. Nf4+ {[%clk 0:00:18.4]}
37... Ke5 {[%clk 0:00:31.4]} 38. Ke2 {[%clk 0:00:18.4]} 38... b5 {[%clk
0:00:31.1]} 39. Kd2 {[%clk 0:00:18.2]} 39... Nc4+ {[%clk 0:00:28]} 40. Kc3
{[%clk 0:00:17.9]} 40... Nd6 {[%clk 0:00:27.4]} 41. Ng6+ {[%clk 0:00:18.2]}
41... Ke6 {[%clk 0:00:26.7]} 42. Nf4+ {[%clk 0:00:17.9]} 42... Ke5 {[%clk
0:00:27]} 43. Ng6+ {[%clk 0:00:18.4]} 43... Ke6 {[%clk 0:00:27.2]} 44. Nf4+
{[%clk 0:00:19.1]} 44... Ke5 {[%clk 0:00:27.4]} 1/2-1/2

[Event "Early-Titled-Tuesday-Blitz-January-30-2024"]
[Site "Chess.com"]
[Date "2024.01.30"]
[Round "5"]
[White "Brahianzevich"]
[Black "Mohamed-almado"]
[Result "1-0"]
[WhiteElo "2369"]
[BlackElo "1583"]
[TimeControl "180+1"]
[EndTime "8:57:41 PST"]
[Termination "Brahianzevich won on time"]

1. e4 {[%clk 0:02:50.8]} 1... c5 {[%clk 0:01:30.5]} 2. Nf3 {[%clk 0:01:28.6]}
2... Nc6 {[%clk 0:01:28.2]} 3. d4 {[%clk 0:01:28.4]} 3... cxd4 {[%clk
0:01:28.1]} 4. Nxd4 {[%clk 0:01:29.3]} 4... e6 {[%clk 0:01:27.2]} 5. Nc3 {[%clk
0:01:27.2]} 5... Bc5 {[%clk 0:01:27.2]} 6. Nb3 {[%clk 0:01:16.9]} 6... Bb4
{[%clk 0:01:27]} 7. Bd3 {[%clk 0:01:16.2]} 7... Nge7 {[%clk 0:01:25]} 8. O-O
{[%clk 0:01:15.5]} 8... Bxc3 {[%clk 0:01:24.8]} 9. bxc3 {[%clk 0:01:15.5]} 9...
O-O {[%clk 0:01:25.7]} 10. c4 {[%clk 0:01:13.6]} 10... Ng6 {[%clk 0:01:24.6]}
11. f4 {[%clk 0:01:11.2]} 11... f5 {[%clk 0:01:23.5]} 12. exf5 {[%clk
0:01:07.3]} 12... exf5 {[%clk 0:01:23.6]} 13. Bb2 {[%clk 0:01:05]} 13... d5
{[%clk 0:01:19.8]} 14. Qf3 {[%clk 0:00:57]} 14... dxc4 {[%clk 0:01:15.6]} 15.
Bxc4+ {[%clk 0:00:56.9]} 15... Kh8 {[%clk 0:01:16.5]} 16. Rad1 {[%clk
0:00:51.1]} 16... Qb6+ {[%clk 0:01:15.1]} 17. Kh1 {[%clk 0:00:51.5]} 17... Nce7
{[%clk 0:01:03.6]} 18. Qc3 {[%clk 0:00:40.7]} 18... Qf6 {[%clk 0:00:43.1]} 19.
Qxf6 {[%clk 0:00:32.9]} 19... gxf6 {[%clk 0:00:42.8]} 20. Rd8 {[%clk 0:00:25.8]}
20... Kg7 {[%clk 0:00:33]} 21. Rfd1 {[%clk 0:00:23.8]} 21... Nc6 {[%clk
0:00:24.3]} 22. Rxf8 {[%clk 0:00:20.2]} 22... Nxf8 {[%clk 0:00:23.9]} 23. Rd6
{[%clk 0:00:19]} 23... Ng6 {[%clk 0:00:15.1]} 24. Bxf6+ {[%clk 0:00:18.3]} 24...
Kh6 {[%clk 0:00:14.2]} 25. g3 {[%clk 0:00:18.2]} 25... Nce7 {[%clk 0:00:03.4]}
26. Bxe7 {[%clk 0:00:18.2]} 26... Kg7 {[%clk 0:00:01.7]} 27. Bf6+ {[%clk
0:00:18.6]} 27... Kh6 {[%clk 0:00:01.9]} 28. Bc3 {[%clk 0:00:18]} 28... b6
{[%clk 0:00:02]} 29. Nd4 {[%clk 0:00:18.2]} 29... Bb7+ {[%clk 0:00:01.7]} 30.
Kg1 {[%clk 0:00:17.6]} 30... Re8 {[%clk 0:00:01.2]} 31. Nxf5+ {[%clk 0:00:17.9]}
31... Kh5 {[%clk 0:00:01.1]} 32. Kf2 {[%clk 0:00:18.3]} 1-0

[Event "Early-Titled-Tuesday-Blitz-January-30-2024"]
[Site "Chess.com"]
[Date "2024.01.30"]
[Round "5"]
[White "m_ezat"]
[Black "Makswolf200817"]
[Result "0-1"]
[WhiteElo "2472"]
[BlackElo "2672"]
[TimeControl "180+1"]
[EndTime "8:57:45 PST"]
[Termination "Makswolf200817 won by checkmate"]

1. d4 {[%clk 0:03:00.9]} 1... d5 {[%clk 0:02:59.3]} 2. c4 {[%clk 0:02:59.4]}
2... e6 {[%clk 0:02:59.4]} 3. Nc3 {[%clk 0:02:59.6]} 3... c6 {[%clk 0:02:59.3]}
4. e3 {[%clk 0:02:57.2]} 4... Nf6 {[%clk 0:02:58.8]} 5. Nf3 {[%clk 0:02:56.8]}
5... Nbd7 {[%clk 0:02:59.1]} 6. Bd3 {[%clk 0:02:56.8]} 6... dxc4 {[%clk
0:02:59.1]} 7. Bxc4 {[%clk 0:02:57.1]} 7... b5 {[%clk 0:02:59.8]} 8. Bd3 {[%clk
0:02:57.7]} 8... Bd6 {[%clk 0:03:00.4]} 9. O-O {[%clk 0:02:57.2]} 9... O-O
{[%clk 0:02:56.8]} 10. e4 {[%clk 0:02:53.2]} 10... e5 {[%clk 0:02:56.6]} 11. Re1
{[%clk 0:02:53.4]} 11... Bb7 {[%clk 0:02:55.8]} 12. Bg5 {[%clk 0:02:52.1]} 12...
Re8 {[%clk 0:02:48.9]} 13. d5 {[%clk 0:02:51.2]} 13... cxd5 {[%clk 0:02:31.9]}
14. Nxb5 {[%clk 0:02:40.5]} 14... Bb4 {[%clk 0:02:31.9]} 15. Re2 {[%clk
0:02:32.4]} 15... Qb6 {[%clk 0:02:13.8]} 16. Bxf6 {[%clk 0:02:10.4]} 16... Nxf6
{[%clk 0:02:12.7]} 17. Ng5 {[%clk 0:01:46.8]} 17... dxe4 {[%clk 0:02:05.4]} 18.
Bc4 {[%clk 0:01:45.4]} 18... Red8 {[%clk 0:01:29.1]} 19. Qb3 {[%clk 0:01:42.2]}
19... Nd5 {[%clk 0:01:27.1]} 20. Nxe4 {[%clk 0:01:29.4]} 20... Rd7 {[%clk
0:01:00.5]} 21. a3 {[%clk 0:00:49.4]} 21... Bf8 {[%clk 0:00:52]} 22. Nec3 {[%clk
0:00:45.8]} 22... Nf4 {[%clk 0:00:42.5]} 23. Re3 {[%clk 0:00:40.6]} 23... Nxg2
{[%clk 0:00:39.4]} 24. Rg3 {[%clk 0:00:40.5]} 24... Nf4 {[%clk 0:00:35]} 25. Re1
{[%clk 0:00:39.7]} 25... Re8 {[%clk 0:00:25.5]} 26. Na4 {[%clk 0:00:38.5]} 26...
Qc6 {[%clk 0:00:23.2]} 27. f3 {[%clk 0:00:38.5]} 27... Bc5+ {[%clk 0:00:17.4]}
28. Kh1 {[%clk 0:00:33.8]} 28... Bf2 {[%clk 0:00:15.7]} 29. Rf1 {[%clk
0:00:26.8]} 29... Bxg3 {[%clk 0:00:15.2]} 30. hxg3 {[%clk 0:00:27]} 30... Qh6+
{[%clk 0:00:15.8]} 31. Kg1 {[%clk 0:00:24.7]} 31... Nd3 {[%clk 0:00:13.5]} 32.
Bxd3 {[%clk 0:00:20.8]} 32... Qe3+ {[%clk 0:00:14.1]} 33. Kg2 {[%clk 0:00:20.7]}
33... Rxd3 {[%clk 0:00:14.7]} 34. Nbc3 {[%clk 0:00:19]} 34... Rd2+ {[%clk
0:00:14.2]} 35. Kh3 {[%clk 0:00:15.1]} 35... Qh6+ {[%clk 0:00:14.4]} 36. Kg4
{[%clk 0:00:15.4]} 36... Bc8+ {[%clk 0:00:14.9]} 37. Qe6 {[%clk 0:00:11.9]}
37... Bxe6# {[%clk 0:00:15.8]} 0-1

[Event "Early-Titled-Tuesday-Blitz-January-30-2024"]
[Site "Chess.com"]
[Date "2024.01.30"]
[Round "5"]
[White "BeardedNM"]
[Black "maurovargas01"]
[Result "1-0"]
[WhiteElo "2196"]
[BlackElo "1833"]
[TimeControl "180+1"]
[EndTime "8:57:45 PST"]
[Termination "BeardedNM won on time"]

1. e4 {[%clk 0:02:57.9]} 1... c6 {[%clk 0:02:59.4]} 2. d4 {[%clk 0:02:57.8]}
2... d5 {[%clk 0:03:00.3]} 3. e5 {[%clk 0:02:58.5]} 3... Bf5 {[%clk 0:02:56.4]}
4. Nf3 {[%clk 0:02:58.8]} 4... h6 {[%clk 0:02:55.1]} 5. Be2 {[%clk 0:02:55.3]}
5... e6 {[%clk 0:02:54.8]} 6. O-O {[%clk 0:02:54.4]} 6... Nd7 {[%clk 0:02:53.3]}
7. Nbd2 {[%clk 0:02:54.2]} 7... c5 {[%clk 0:02:53.2]} 8. c4 {[%clk 0:02:53.7]}
8... Nb6 {[%clk 0:02:44.3]} 9. dxc5 {[%clk 0:02:40.5]} 9... Bxc5 {[%clk
0:02:42.7]} 10. Nb3 {[%clk 0:02:34.5]} 10... Bb4 {[%clk 0:02:35.5]} 11. Nbd4
{[%clk 0:02:07.2]} 11... Bh7 {[%clk 0:02:20.9]} 12. a3 {[%clk 0:02:01]} 12...
Be7 {[%clk 0:02:10.4]} 13. Be3 {[%clk 0:01:31.4]} 13... Bg5 {[%clk 0:01:57.9]}
14. c5 {[%clk 0:01:03.4]} 14... Nd7 {[%clk 0:01:48]} 15. c6 {[%clk 0:01:01.2]}
15... bxc6 {[%clk 0:01:45.4]} 16. Nxc6 {[%clk 0:01:00.9]} 16... Qc7 {[%clk
0:01:28.5]} 17. Rc1 {[%clk 0:00:52.6]} 17... Bxe3 {[%clk 0:01:17.5]} 18. fxe3
{[%clk 0:00:53.5]} 18... Rc8 {[%clk 0:01:08.1]} 19. Qa4 {[%clk 0:00:41.8]} 19...
Be4 {[%clk 0:00:47.4]} 20. Nfd4 {[%clk 0:00:25.7]} 20... Qb7 {[%clk 0:00:32.6]}
21. Ba6 {[%clk 0:00:20.6]} 21... Qxb2 {[%clk 0:00:23.1]} 22. Rc2 {[%clk
0:00:13.1]} 22... Bxc2 {[%clk 0:00:16.7]} 23. Nxc2 {[%clk 0:00:13.1]} 23... Rc7
{[%clk 0:00:11.8]} 24. N2d4 {[%clk 0:00:12.5]} 24... Nb6 {[%clk 0:00:10.1]} 25.
Qd1 {[%clk 0:00:10]} 25... Ne7 {[%clk 0:00:07.5]} 26. Nxe7 {[%clk 0:00:08.9]}
26... Rxe7 {[%clk 0:00:07]} 27. Bb5+ {[%clk 0:00:08.7]} 27... Kf8 {[%clk
0:00:03.2]} 28. Qf3 {[%clk 0:00:06.9]} 28... g6 {[%clk 0:00:01.9]} 29. Nxe6+
{[%clk 0:00:06.7]} 1-0

[Event "Early-Titled-Tuesday-Blitz-January-30-2024"]
[Site "Chess.com"]
[Date "2024.01.30"]
[Round "5"]
[White "MalyDominator"]
[Black "ansko1999"]
[Result "0-1"]
[WhiteElo "2487"]
[BlackElo "2698"]
[TimeControl "180+1"]
[EndTime "8:57:50 PST"]
[Termination "ansko1999 won on time"]

1. e4 {[%clk 0:03:00.9]} 1... c5 {[%clk 0:02:57.3]} 2. Nf3 {[%clk 0:03:00.2]}
2... d6 {[%clk 0:02:55]} 3. d4 {[%clk 0:03:00.4]} 3... cxd4 {[%clk 0:02:54.6]}
4. Nxd4 {[%clk 0:03:01.3]} 4... Nf6 {[%clk 0:02:54.8]} 5. Nc3 {[%clk 0:03:01.9]}
5... a6 {[%clk 0:02:54.6]} 6. Be3 {[%clk 0:03:01.2]} 6... g6 {[%clk 0:02:49.4]}
7. f3 {[%clk 0:02:59.8]} 7... Bg7 {[%clk 0:02:49.6]} 8. Qd2 {[%clk 0:03:00.5]}
8... Qa5 {[%clk 0:02:38]} 9. O-O-O {[%clk 0:02:58.7]} 9... Nc6 {[%clk
0:02:29.9]} 10. Nb3 {[%clk 0:02:58.6]} 10... Qc7 {[%clk 0:02:28.4]} 11. g4
{[%clk 0:02:58.8]} 11... Be6 {[%clk 0:02:27.6]} 12. h4 {[%clk 0:02:57.4]} 12...
Rc8 {[%clk 0:02:27.5]} 13. h5 {[%clk 0:02:54.4]} 13... Ne5 {[%clk 0:01:58.5]}
14. h6 {[%clk 0:02:41.3]} 14... Bf8 {[%clk 0:01:58.8]} 15. Be2 {[%clk
0:02:40.6]} 15... b5 {[%clk 0:01:54.5]} 16. g5 {[%clk 0:02:40.6]} 16... Nfd7
{[%clk 0:01:52.8]} 17. f4 {[%clk 0:02:37.2]} 17... Nc4 {[%clk 0:01:51.9]} 18.
Bxc4 {[%clk 0:02:34.7]} 18... Bxc4 {[%clk 0:01:51.9]} 19. Kb1 {[%clk 0:02:17]}
19... a5 {[%clk 0:01:40.3]} 20. Nd5 {[%clk 0:02:05.8]} 20... Bxd5 {[%clk
0:01:37.7]} 21. exd5 {[%clk 0:02:06.7]} 21... b4 {[%clk 0:01:28.1]} 22. Nd4
{[%clk 0:01:55.6]} 22... Nc5 {[%clk 0:01:20]} 23. Nc6 {[%clk 0:01:54.1]} 23...
e6 {[%clk 0:01:17.2]} 24. Bd4 {[%clk 0:01:52.8]} 24... exd5 {[%clk 0:01:01.2]}
25. Rhe1+ {[%clk 0:01:46.8]} 25... Kd7 {[%clk 0:01:01.3]} 26. Ne5+ {[%clk
0:01:41.1]} 26... dxe5 {[%clk 0:00:59.3]} 27. Bxe5 {[%clk 0:01:41.3]} 27... Bd6
{[%clk 0:00:44.6]} 28. Qxd5 {[%clk 0:01:36.1]} 28... Nb7 {[%clk 0:00:39.9]} 29.
Qxf7+ {[%clk 0:01:20.4]} 29... Kc6 {[%clk 0:00:37.5]} 30. Qd5+ {[%clk 0:00:55]}
30... Kd7 {[%clk 0:00:37.5]} 31. Rd2 {[%clk 0:00:25.6]} 31... Rhe8 {[%clk
0:00:24]} 32. Red1 {[%clk 0:00:24.2]} 32... Re6 {[%clk 0:00:22.7]} 33. Qd3
{[%clk 0:00:03.8]} 33... Qc6 {[%clk 0:00:18.8]} 34. Qg3 {[%clk 0:00:02.7]} 34...
Kc7 {[%clk 0:00:17.2]} 35. Bxd6+ {[%clk 0:00:03.1]} 35... Nxd6 {[%clk
0:00:15.9]} 36. f5 {[%clk 0:00:03.6]} 36... gxf5 {[%clk 0:00:16.3]} 37. Qf4
{[%clk 0:00:02.5]} 37... Rd8 {[%clk 0:00:15.3]} 0-1

[Event "Early-Titled-Tuesday-Blitz-January-30-2024"]
[Site "Chess.com"]
[Date "2024.01.30"]
[Round "5"]
[White "ilushka"]
[Black "Let_it_be_1"]
[Result "0-1"]
[WhiteElo "2347"]
[BlackElo "2575"]
[TimeControl "180+1"]
[EndTime "8:57:51 PST"]
[Termination "Let_it_be_1 won on time"]

1. Nf3 {[%clk 0:02:41.5]} 1... d5 {[%clk 0:02:59.9]} 2. g3 {[%clk 0:02:41.7]}
2... e6 {[%clk 0:03:00.1]} 3. Bg2 {[%clk 0:02:42.1]} 3... Nf6 {[%clk 0:03:00.4]}
4. d4 {[%clk 0:02:42.5]} 4... Be7 {[%clk 0:03:00.5]} 5. c4 {[%clk 0:02:43.1]}
5... O-O {[%clk 0:03:00.6]} 6. Qc2 {[%clk 0:02:43.8]} 6... dxc4 {[%clk
0:03:00.6]} 7. Qxc4 {[%clk 0:02:44.7]} 7... a6 {[%clk 0:03:00.4]} 8. Bf4 {[%clk
0:02:45.3]} 8... Nd5 {[%clk 0:02:53.3]} 9. Nc3 {[%clk 0:02:45.3]} 9... b5 {[%clk
0:02:52.3]} 10. Qd3 {[%clk 0:02:45.5]} 10... Bb7 {[%clk 0:02:43.2]} 11. O-O
{[%clk 0:02:45.2]} 11... Nd7 {[%clk 0:02:31.4]} 12. Rfd1 {[%clk 0:02:40]} 12...
c5 {[%clk 0:02:25.2]} 13. dxc5 {[%clk 0:02:35.7]} 13... Nxc5 {[%clk 0:02:24.3]}
14. Qc2 {[%clk 0:02:35.1]} 14... Qa5 {[%clk 0:02:07]} 15. Nxd5 {[%clk
0:02:32.7]} 15... Bxd5 {[%clk 0:02:06.8]} 16. Ng5 {[%clk 0:02:20.3]} 16... Bxg5
{[%clk 0:02:01.7]} 17. Bxd5 {[%clk 0:02:20.4]} 17... exd5 {[%clk 0:01:22.9]} 18.
Qxc5 {[%clk 0:02:17]} 18... Bxf4 {[%clk 0:01:21.5]} 19. gxf4 {[%clk 0:02:17.9]}
19... Rac8 {[%clk 0:01:09.3]} 20. Qxd5 {[%clk 0:02:13.7]} 20... Rc2 {[%clk
0:01:09]} 21. Qe4 {[%clk 0:01:46.6]} 21... Rxb2 {[%clk 0:01:03.8]} 22. a4 {[%clk
0:01:46.7]} 22... Rb4 {[%clk 0:01:00.9]} 23. Qe7 {[%clk 0:01:15]} 23... Rxa4
{[%clk 0:01:00.9]} 24. Rxa4 {[%clk 0:01:13.8]} 24... bxa4 {[%clk 0:01:01.2]} 25.
e4 {[%clk 0:01:03.5]} 25... a3 {[%clk 0:00:52.8]} 26. Rd5 {[%clk 0:00:48.8]}
26... Qe1+ {[%clk 0:00:46]} 27. Kg2 {[%clk 0:00:49]} 27... a2 {[%clk 0:00:46.4]}
28. Rd8 {[%clk 0:00:48.6]} 28... h6 {[%clk 0:00:19.4]} 29. Qxf8+ {[%clk
0:00:17.8]} 29... Kh7 {[%clk 0:00:19.3]} 30. Qg8+ {[%clk 0:00:17.9]} 30... Kg6
{[%clk 0:00:19.6]} 31. f5+ {[%clk 0:00:07.6]} 31... Kf6 {[%clk 0:00:17]} 32.
Rd6+ {[%clk 0:00:05.8]} 32... Ke5 {[%clk 0:00:09.4]} 33. Rd5+ {[%clk 0:00:05]}
33... Kf4 {[%clk 0:00:07.1]} 0-1

[Event "Early-Titled-Tuesday-Blitz-January-30-2024"]
[Site "Chess.com"]
[Date "2024.01.30"]
[Round "5"]
[White "Irishchessman16"]
[Black "josmito10"]
[Result "0-1"]
[WhiteElo "2515"]
[BlackElo "2769"]
[TimeControl "180+1"]
[EndTime "8:57:52 PST"]
[Termination "josmito10 won on time"]

1. d4 {[%clk 0:03:00.9]} 1... e6 {[%clk 0:02:58.4]} 2. e4 {[%clk 0:02:56.9]}
2... d5 {[%clk 0:02:58.6]} 3. Bd3 {[%clk 0:02:56.8]} 3... Nc6 {[%clk 0:02:58]}
4. Ne2 {[%clk 0:02:52.4]} 4... Nb4 {[%clk 0:02:56.9]} 5. Bb5+ {[%clk 0:02:50.6]}
5... c6 {[%clk 0:02:56.7]} 6. Ba4 {[%clk 0:02:51]} 6... dxe4 {[%clk 0:02:56.5]}
7. O-O {[%clk 0:02:49.9]} 7... Nf6 {[%clk 0:02:54.7]} 8. a3 {[%clk 0:02:42.7]}
8... Nbd5 {[%clk 0:02:54]} 9. c4 {[%clk 0:02:42.5]} 9... Nb6 {[%clk 0:02:54.2]}
10. Bb3 {[%clk 0:02:39.4]} 10... Be7 {[%clk 0:02:53.9]} 11. Nbc3 {[%clk
0:02:39.2]} 11... O-O {[%clk 0:02:53.8]} 12. Ng3 {[%clk 0:02:38]} 12... a5
{[%clk 0:02:32.7]} 13. Ngxe4 {[%clk 0:02:25.9]} 13... Nxe4 {[%clk 0:02:33.6]}
14. Nxe4 {[%clk 0:02:25.5]} 14... a4 {[%clk 0:02:34.5]} 15. Bc2 {[%clk
0:02:18.1]} 15... f5 {[%clk 0:02:32.5]} 16. c5 {[%clk 0:02:14.3]} 16... Nd5
{[%clk 0:02:27.3]} 17. Nd2 {[%clk 0:02:10.2]} 17... Bf6 {[%clk 0:02:16.4]} 18.
Nc4 {[%clk 0:02:03.7]} 18... b5 {[%clk 0:02:16.6]} 19. cxb6 {[%clk 0:01:53]}
19... Nxb6 {[%clk 0:02:16.2]} 20. Ne5 {[%clk 0:01:52.6]} 20... Bb7 {[%clk
0:02:07.6]} 21. Bf4 {[%clk 0:01:39.6]} 21... Qd5 {[%clk 0:02:06.7]} 22. Nf3
{[%clk 0:01:25.7]} 22... Nc4 {[%clk 0:02:01.4]} 23. Qe2 {[%clk 0:01:13.2]} 23...
Nxb2 {[%clk 0:01:41.7]} 24. Rfb1 {[%clk 0:00:50.3]} 24... Ba6 {[%clk 0:01:41.6]}
25. Qe1 {[%clk 0:00:30.5]} 25... Nd3 {[%clk 0:01:41.1]} 26. Bxd3 {[%clk
0:00:25.5]} 26... Bxd3 {[%clk 0:01:42]} 27. Rb7 {[%clk 0:00:23.3]} 27... Be4
{[%clk 0:01:40]} 28. Ne5 {[%clk 0:00:20.8]} 28... Bxg2 {[%clk 0:01:25.9]} 29.
Rd7 {[%clk 0:00:18.6]} 29... Qe4 {[%clk 0:01:23.9]} 30. Qxe4 {[%clk 0:00:15.5]}
30... Bxe4 {[%clk 0:01:24.8]} 31. f3 {[%clk 0:00:13.7]} 31... Bd5 {[%clk
0:01:24]} 32. Rb1 {[%clk 0:00:13.7]} 32... Rab8 {[%clk 0:01:21.1]} 33. Rbb7
{[%clk 0:00:13.2]} 33... Rxb7 {[%clk 0:01:20.8]} 34. Rxb7 {[%clk 0:00:13.4]}
34... c5 {[%clk 0:01:21.7]} 35. Ra7 {[%clk 0:00:12.6]} 35... cxd4 {[%clk
0:01:17.6]} 36. Nd7 {[%clk 0:00:12.7]} 36... Rd8 {[%clk 0:01:13]} 37. Nxf6+
{[%clk 0:00:06.4]} 37... gxf6 {[%clk 0:01:13.9]} 38. Bh6 {[%clk 0:00:06.3]}
38... d3 {[%clk 0:01:13.6]} 39. Kf2 {[%clk 0:00:06]} 39... Bxf3 {[%clk
0:01:07.1]} 40. Kxf3 {[%clk 0:00:05.6]} 40... d2 {[%clk 0:01:05.8]} 41. Bxd2
{[%clk 0:00:05.6]} 41... Rxd2 {[%clk 0:01:06.7]} 42. Rxa4 {[%clk 0:00:05.8]}
42... Kf7 {[%clk 0:01:06]} 43. Ra7+ {[%clk 0:00:05.5]} 43... Kg6 {[%clk
0:01:06.1]} 44. h3 {[%clk 0:00:05.8]} 44... e5 {[%clk 0:01:06.2]} 45. a4 {[%clk
0:00:05.8]} 45... Rd3+ {[%clk 0:01:06.5]} 46. Kg2 {[%clk 0:00:05]} 46... Ra3
{[%clk 0:01:06.4]} 47. a5 {[%clk 0:00:05]} 47... f4 {[%clk 0:01:06.8]} 48. a6
{[%clk 0:00:04.4]} 48... Kf5 {[%clk 0:01:06.8]} 49. Rxh7 {[%clk 0:00:03.6]}
49... Rxa6 {[%clk 0:01:06.3]} 50. h4 {[%clk 0:00:04.3]} 50... Ra2+ {[%clk
0:01:06.3]} 51. Kf1 {[%clk 0:00:03.2]} 51... Ke4 {[%clk 0:01:05.9]} 52. h5
{[%clk 0:00:03.1]} 52... Kf3 {[%clk 0:01:06.2]} 53. Ke1 {[%clk 0:00:02.6]} 53...
e4 {[%clk 0:01:06.4]} 0-1

[Event "Early-Titled-Tuesday-Blitz-January-30-2024"]
[Site "Chess.com"]
[Date "2024.01.30"]
[Round "5"]
[White "topce"]
[Black "aghasiyevkamal"]
[Result "0-1"]
[WhiteElo "2383"]
[BlackElo "2595"]
[TimeControl "180+1"]
[EndTime "8:57:52 PST"]
[Termination "aghasiyevkamal won on time"]

1. e4 {[%clk 0:03:00.9]} 1... c5 {[%clk 0:02:56.8]} 2. Nf3 {[%clk 0:02:57.3]}
2... d6 {[%clk 0:02:56.9]} 3. Bb5+ {[%clk 0:02:54.8]} 3... Bd7 {[%clk
0:02:56.3]} 4. a4 {[%clk 0:02:54.7]} 4... Nf6 {[%clk 0:02:54.4]} 5. d3 {[%clk
0:02:53.2]} 5... e6 {[%clk 0:02:53.2]} 6. O-O {[%clk 0:02:52.6]} 6... a6 {[%clk
0:02:49.5]} 7. Bxd7+ {[%clk 0:02:51.9]} 7... Nbxd7 {[%clk 0:02:48.6]} 8. Na3
{[%clk 0:02:50.7]} 8... Be7 {[%clk 0:02:49.1]} 9. Bf4 {[%clk 0:02:48.7]} 9...
O-O {[%clk 0:02:48.7]} 10. Nc4 {[%clk 0:02:47.9]} 10... d5 {[%clk 0:02:48.7]}
11. exd5 {[%clk 0:02:48]} 11... exd5 {[%clk 0:02:49.1]} 12. Nce5 {[%clk
0:02:46.9]} 12... Nh5 {[%clk 0:02:45.8]} 13. Bd2 {[%clk 0:02:33.1]} 13... Bd6
{[%clk 0:02:37.8]} 14. Re1 {[%clk 0:02:28.3]} 14... Re8 {[%clk 0:02:36.8]} 15.
Nxd7 {[%clk 0:02:12.5]} 15... Qxd7 {[%clk 0:02:36]} 16. c4 {[%clk 0:02:05.7]}
16... Qf5 {[%clk 0:02:28.6]} 17. Qb3 {[%clk 0:01:51.7]} 17... Bf4 {[%clk
0:02:08]} 18. Qxb7 {[%clk 0:01:41.3]} 18... Bxd2 {[%clk 0:02:03.5]} 19. Nxd2
{[%clk 0:01:41.3]} 19... Nf4 {[%clk 0:01:59.8]} 20. Qc6 {[%clk 0:01:34.8]} 20...
Rec8 {[%clk 0:01:54.5]} 21. Qd6 {[%clk 0:01:10.9]} 21... Nxd3 {[%clk 0:01:52.5]}
22. Re7 {[%clk 0:01:05.8]} 22... Qxf2+ {[%clk 0:01:50.9]} 23. Kh1 {[%clk
0:01:06.1]} 23... Qxd2 {[%clk 0:01:49.2]} 24. Rf1 {[%clk 0:01:02.4]} 24... Rf8
{[%clk 0:01:40.3]} 25. Qxd5 {[%clk 0:00:56.4]} 25... Nf2+ {[%clk 0:01:31.9]} 26.
Kg1 {[%clk 0:00:52.3]} 26... Qxd5 {[%clk 0:01:29.8]} 27. cxd5 {[%clk 0:00:53.2]}
27... Ng4 {[%clk 0:01:27.4]} 28. d6 {[%clk 0:00:43.8]} 28... Rad8 {[%clk
0:01:25.7]} 29. Rd1 {[%clk 0:00:41.4]} 29... Rfe8 {[%clk 0:01:19.2]} 30. Rde1
{[%clk 0:00:22.3]} 30... Kf8 {[%clk 0:01:12.6]} 31. h3 {[%clk 0:00:19.8]} 31...
Nf6 {[%clk 0:01:11.9]} 32. R1e5 {[%clk 0:00:16.2]} 32... Rxd6 {[%clk 0:01:11]}
33. Rxe8+ {[%clk 0:00:15.9]} 33... Nxe8 {[%clk 0:01:10.5]} 34. Rxc5 {[%clk
0:00:16.8]} 34... Rd2 {[%clk 0:01:08.3]} 35. b4 {[%clk 0:00:16.5]} 35... Rb2
{[%clk 0:01:04.6]} 36. Ra5 {[%clk 0:00:14.8]} 36... Nc7 {[%clk 0:01:02.7]} 37.
Rc5 {[%clk 0:00:15]} 37... Ne6 {[%clk 0:01:00.8]} 38. Ra5 {[%clk 0:00:15.2]}
38... Rxb4 {[%clk 0:01:00.9]} 39. Rxa6 {[%clk 0:00:15.4]} 39... Nc5 {[%clk
0:00:59.6]} 40. Ra8+ {[%clk 0:00:14.9]} 40... Ke7 {[%clk 0:00:59.8]} 41. a5
{[%clk 0:00:15.8]} 41... Ra4 {[%clk 0:00:59.8]} 42. Kf2 {[%clk 0:00:10.4]} 42...
Ra3 {[%clk 0:00:57.7]} 43. Ra7+ {[%clk 0:00:08.4]} 43... Ke6 {[%clk 0:00:56.9]}
44. Ra8 {[%clk 0:00:09.1]} 44... h5 {[%clk 0:00:56]} 45. Re8+ {[%clk 0:00:07.4]}
45... Kf6 {[%clk 0:00:52.5]} 46. Ra8 {[%clk 0:00:08.3]} 46... h4 {[%clk
0:00:51.6]} 47. Kf1 {[%clk 0:00:06.6]} 47... g5 {[%clk 0:00:51.6]} 48. Kf2
{[%clk 0:00:06.6]} 48... Kf5 {[%clk 0:00:51.2]} 49. Rc8 {[%clk 0:00:03.5]} 49...
Rxa5 {[%clk 0:00:50.5]} 50. Rc6 {[%clk 0:00:02.7]} 50... Ne4+ {[%clk 0:00:47.3]}
51. Kg1 {[%clk 0:00:03.1]} 51... Kf4 {[%clk 0:00:46.1]} 0-1